[Event "*** Titled Tuesday Blitz"]
[Site "Chess.com"]
[Date "2021.03.02"]
[Round "1"]
[White "ZiggyStardust64"]
[Black "Vallek86"]
[Result "1-0"]
[WhiteElo "2625"]
[BlackElo "2318"]
[TimeControl "180+1"]
[EndTime "10:07:21 PST"]
[Termination "ZiggyStardust64 won by resignation"]

1. e4 {[%clk 0:03:00.9]} 1... c6 {[%clk 0:02:58.8]} 2. d4 {[%clk 0:02:58.3]}
2... d5 {[%clk 0:02:59.7]} 3. e5 {[%clk 0:02:53.3]} 3... Bf5 {[%clk 0:02:59.6]}
4. c4 {[%clk 0:02:53]} 4... e6 {[%clk 0:02:58]} 5. Nc3 {[%clk 0:02:53.4]} 5...
Ne7 {[%clk 0:02:55.9]} 6. Nge2 {[%clk 0:02:53.4]} 6... Nd7 {[%clk 0:02:52.3]} 7.
Ng3 {[%clk 0:02:53.8]} 7... Bg6 {[%clk 0:02:52.2]} 8. h4 {[%clk 0:02:54.5]} 8...
h6 {[%clk 0:02:52.1]} 9. h5 {[%clk 0:02:49.6]} 9... Bh7 {[%clk 0:02:52.1]} 10.
b3 {[%clk 0:02:47.6]} 10... Nf5 {[%clk 0:02:46.8]} 11. Nxf5 {[%clk 0:02:42.5]}
11... Bxf5 {[%clk 0:02:45.3]} 12. Bb2 {[%clk 0:02:41.5]} 12... Be7 {[%clk
0:02:37.7]} 13. Bd3 {[%clk 0:02:29.3]} 13... Bxd3 {[%clk 0:02:37]} 14. Qxd3
{[%clk 0:02:30.2]} 14... dxc4 {[%clk 0:02:37.4]} 15. bxc4 {[%clk 0:02:12.8]}
15... Nxe5 {[%clk 0:02:20.7]} 16. Qe2 {[%clk 0:02:09.3]} 16... Nd7 {[%clk
0:02:17.1]} 17. d5 {[%clk 0:02:02.2]} 17... cxd5 {[%clk 0:02:06.4]} 18. cxd5
{[%clk 0:02:03.1]} 18... Qb6 {[%clk 0:01:47]} 19. O-O {[%clk 0:01:58.3]} 19...
O-O {[%clk 0:01:07.9]} 20. Rfe1 {[%clk 0:01:57.6]} 20... Nc5 {[%clk 0:01:08]}
21. Rab1 {[%clk 0:01:53.4]} 21... Qa5 {[%clk 0:01:00.5]} 22. Ne4 {[%clk
0:01:32.2]} 22... Rfe8 {[%clk 0:00:34.1]} 23. Qg4 {[%clk 0:01:27.9]} 23... Bf8
{[%clk 0:00:14.7]} 24. Nf6+ {[%clk 0:01:28.3]} 24... Kh8 {[%clk 0:00:15.2]} 25.
Nxe8 {[%clk 0:01:28.9]} 25... Rxe8 {[%clk 0:00:16.1]} 26. Qf3 {[%clk 0:01:28.5]}
26... Qc7 {[%clk 0:00:08.1]} 27. Bd4 {[%clk 0:01:26.1]} 27... Kg8 {[%clk
0:00:07.5]} 28. Rbc1 {[%clk 0:01:16.3]} 28... b6 {[%clk 0:00:07.4]} 29. dxe6
{[%clk 0:01:11.3]} 29... fxe6 {[%clk 0:00:08.3]} 30. Be5 {[%clk 0:01:10.7]}
30... Bd6 {[%clk 0:00:08]} 31. Bxd6 {[%clk 0:01:10]} 31... Qxd6 {[%clk
0:00:08.9]} 32. Rcd1 {[%clk 0:01:10.5]} 32... Qc7 {[%clk 0:00:09.2]} 33. Qg4
{[%clk 0:01:06.2]} 33... Qf7 {[%clk 0:00:09]} 34. Re3 {[%clk 0:01:04.6]} 34...
e5 {[%clk 0:00:09]} 35. Rd6 {[%clk 0:00:48.2]} 35... e4 {[%clk 0:00:08.9]} 36.
Rxh6 {[%clk 0:00:47.8]} 36... Qxa2 {[%clk 0:00:08.5]} 37. Rg6 {[%clk 0:00:47.5]}
37... Qa1+ {[%clk 0:00:08.5]} 38. Kh2 {[%clk 0:00:46.7]} 38... Qe5+ {[%clk
0:00:08.2]} 39. Rg3 {[%clk 0:00:46.1]} 39... Re7 {[%clk 0:00:07.3]} 40. h6
{[%clk 0:00:46.5]} 40... Ne6 {[%clk 0:00:07.5]} 41. Kh1 {[%clk 0:00:37.4]} 41...
Qa1+ {[%clk 0:00:05.8]} 42. Kh2 {[%clk 0:00:37.7]} 42... Qe5 {[%clk 0:00:06.7]}
43. Qh4 {[%clk 0:00:36.2]} 43... Nf4 {[%clk 0:00:04]} 44. Rxg7+ {[%clk
0:00:34.1]} 44... Rxg7 {[%clk 0:00:03.8]} 45. Rxg7+ {[%clk 0:00:34.6]} 1-0

[Event "*** Titled Tuesday Blitz"]
[Site "Chess.com"]
[Date "2021.03.02"]
[Round "1"]
[White "katchesskat"]
[Black "Legendinunknown"]
[Result "0-1"]
[WhiteElo "2289"]
[BlackElo "2599"]
[TimeControl "180+1"]
[EndTime "10:07:23 PST"]
[Termination "Legendinunknown won on time"]

1. c4 {[%clk 0:02:57.8]} 1... Nf6 {[%clk 0:02:59.3]} 2. Nf3 {[%clk 0:02:54]}
2... g6 {[%clk 0:02:58.9]} 3. d4 {[%clk 0:02:52.6]} 3... Bg7 {[%clk 0:02:59.3]}
4. Nc3 {[%clk 0:02:52.9]} 4... O-O {[%clk 0:02:59.9]} 5. e4 {[%clk 0:02:52.6]}
5... d6 {[%clk 0:03:00.4]} 6. h3 {[%clk 0:02:52.7]} 6... e5 {[%clk 0:03:00.3]}
7. d5 {[%clk 0:02:52.5]} 7... a5 {[%clk 0:02:59.3]} 8. g4 {[%clk 0:02:51.9]}
8... Na6 {[%clk 0:02:58.6]} 9. Bd3 {[%clk 0:02:51.4]} 9... Nc5 {[%clk
0:02:58.2]} 10. Bc2 {[%clk 0:02:51.7]} 10... c6 {[%clk 0:02:58.6]} 11. Be3
{[%clk 0:02:49.5]} 11... cxd5 {[%clk 0:02:57.7]} 12. Bxc5 {[%clk 0:02:43.6]}
12... d4 {[%clk 0:02:56.8]} 13. Bxd4 {[%clk 0:02:32.1]} 13... exd4 {[%clk
0:02:51.2]} 14. Nxd4 {[%clk 0:02:31.4]} 14... Re8 {[%clk 0:02:38.6]} 15. O-O
{[%clk 0:02:23.8]} 15... h5 {[%clk 0:02:27.8]} 16. f3 {[%clk 0:01:57]} 16... Qb6
{[%clk 0:02:12.7]} 17. Nb5 {[%clk 0:01:45.9]} 17... hxg4 {[%clk 0:01:40.6]} 18.
hxg4 {[%clk 0:01:45]} 18... Bd7 {[%clk 0:01:23.9]} 19. Kg2 {[%clk 0:01:43.8]}
19... Rad8 {[%clk 0:01:17.8]} 20. Qd2 {[%clk 0:01:06.6]} 20... d5 {[%clk
0:00:54.2]} 21. exd5 {[%clk 0:00:58]} 21... Bxb5 {[%clk 0:00:50.6]} 22. Nxb5
{[%clk 0:00:39.1]} 22... Nxd5 {[%clk 0:00:50.3]} 23. cxd5 {[%clk 0:00:16.3]}
23... Qxb5 {[%clk 0:00:49.2]} 24. Be4 {[%clk 0:00:12.5]} 24... f5 {[%clk
0:00:45.9]} 25. gxf5 {[%clk 0:00:12.1]} 25... gxf5 {[%clk 0:00:46.8]} 26. Bd3
{[%clk 0:00:12.4]} 26... Qxd5 {[%clk 0:00:44]} 27. Rad1 {[%clk 0:00:12.5]} 27...
Qc6 {[%clk 0:00:27.8]} 28. Qg5 {[%clk 0:00:11.3]} 28... Rd5 {[%clk 0:00:17.3]}
29. Rc1 {[%clk 0:00:08.9]} 29... Rc5 {[%clk 0:00:13.3]} 30. Rxc5 {[%clk
0:00:07.5]} 30... Qxc5 {[%clk 0:00:14.2]} 31. Bxf5 {[%clk 0:00:06.9]} 31... Re2+
{[%clk 0:00:13.7]} 32. Kh3 {[%clk 0:00:06.2]} 32... Qd6 {[%clk 0:00:12.9]} 33.
Rg1 {[%clk 0:00:05.3]} 33... Qh2+ {[%clk 0:00:12.5]} 34. Kg4 {[%clk 0:00:05.6]}
34... Qxg1+ {[%clk 0:00:12.7]} 35. Kf4 {[%clk 0:00:06.1]} 35... Qc1+ {[%clk
0:00:12.5]} 36. Kg4 {[%clk 0:00:06]} 36... Rg2+ {[%clk 0:00:12.7]} 0-1

[Event "*** Titled Tuesday Blitz"]
[Site "Chess.com"]
[Date "2021.03.02"]
[Round "1"]
[White "CSB7"]
[Black "lelya96"]
[Result "1-0"]
[WhiteElo "2569"]
[BlackElo "2266"]
[TimeControl "180+1"]
[EndTime "10:07:23 PST"]
[Termination "CSB7 won by resignation"]

1. d4 {[%clk 0:02:54.3]} 1... d5 {[%clk 0:02:59]} 2. Nf3 {[%clk 0:02:54.1]} 2...
Nf6 {[%clk 0:02:58.2]} 3. Bf4 {[%clk 0:02:52.6]} 3... e6 {[%clk 0:02:54.5]} 4.
e3 {[%clk 0:02:51]} 4... Be7 {[%clk 0:02:54.4]} 5. Nbd2 {[%clk 0:02:48.7]} 5...
c5 {[%clk 0:02:53.2]} 6. c3 {[%clk 0:02:48.6]} 6... O-O {[%clk 0:02:49.1]} 7.
Bd3 {[%clk 0:02:48.2]} 7... b6 {[%clk 0:02:46.6]} 8. Ne5 {[%clk 0:02:41.2]} 8...
Bb7 {[%clk 0:02:44.3]} 9. Qf3 {[%clk 0:02:34.3]} 9... Nbd7 {[%clk 0:02:39.5]}
10. Rd1 {[%clk 0:02:27.3]} 10... cxd4 {[%clk 0:02:21.9]} 11. exd4 {[%clk
0:02:26.5]} 11... Re8 {[%clk 0:02:08.8]} 12. Qh3 {[%clk 0:02:09]} 12... Nf8
{[%clk 0:02:04.9]} 13. Bb5 {[%clk 0:02:08.1]} 13... N6d7 {[%clk 0:01:58.7]} 14.
Nc6 {[%clk 0:01:58.4]} 14... Qc8 {[%clk 0:01:40.2]} 15. Nxe7+ {[%clk 0:01:52.7]}
15... Rxe7 {[%clk 0:01:40.5]} 16. O-O {[%clk 0:01:37.2]} 16... Bc6 {[%clk
0:01:34.8]} 17. Bd3 {[%clk 0:01:35.8]} 17... Ng6 {[%clk 0:01:22.1]} 18. Bd6
{[%clk 0:01:27.7]} 18... Re8 {[%clk 0:01:21.5]} 19. Nf3 {[%clk 0:01:24.7]} 19...
Nf6 {[%clk 0:01:18.9]} 20. Ne5 {[%clk 0:01:14.1]} 20... Qd8 {[%clk 0:01:10.2]}
21. Bxg6 {[%clk 0:00:56.7]} 21... hxg6 {[%clk 0:01:04.4]} 22. Ba3 {[%clk
0:00:54.6]} 22... Bb5 {[%clk 0:00:52.5]} 23. Rfe1 {[%clk 0:00:54.3]} 23... Ne4
{[%clk 0:00:49.5]} 24. f3 {[%clk 0:00:48.6]} 24... Nd6 {[%clk 0:00:40.2]} 25.
Bxd6 {[%clk 0:00:36.6]} 25... Qxd6 {[%clk 0:00:39.9]} 26. f4 {[%clk 0:00:33.1]}
26... a5 {[%clk 0:00:36.2]} 27. Re3 {[%clk 0:00:32.8]} 27... Qe7 {[%clk
0:00:29.3]} 28. Qg4 {[%clk 0:00:27.2]} 28... Qf6 {[%clk 0:00:25.3]} 29. Rh3
{[%clk 0:00:25]} 29... a4 {[%clk 0:00:20]} 30. a3 {[%clk 0:00:24.6]} 30... Kf8
{[%clk 0:00:19.7]} 31. Re1 {[%clk 0:00:23.2]} 31... Ke7 {[%clk 0:00:20.1]} 32.
Ree3 {[%clk 0:00:10.8]} 32... Qf5 {[%clk 0:00:20.2]} 33. Qg5+ {[%clk 0:00:07.8]}
33... Qxg5 {[%clk 0:00:19.6]} 34. fxg5 {[%clk 0:00:08.7]} 34... Rh8 {[%clk
0:00:18.2]} 35. Ref3 {[%clk 0:00:08.2]} 35... Rhf8 {[%clk 0:00:16.6]} 36. Rh7
{[%clk 0:00:07.3]} 36... Kd6 {[%clk 0:00:14.4]} 37. Rxg7 {[%clk 0:00:06.2]}
37... Be8 {[%clk 0:00:14.6]} 38. Nxf7+ {[%clk 0:00:06.1]} 38... Bxf7 {[%clk
0:00:14.7]} 39. Rfxf7 {[%clk 0:00:05.6]} 39... Rxf7 {[%clk 0:00:15.1]} 40. Rxf7
{[%clk 0:00:06.5]} 40... Rf8 {[%clk 0:00:15.2]} 41. Rxf8 {[%clk 0:00:06]} 1-0

[Event "*** Titled Tuesday Blitz"]
[Site "Chess.com"]
[Date "2021.03.02"]
[Round "1"]
[White "KetiGrant"]
[Black "heyjohnnypark"]
[Result "1-0"]
[WhiteElo "2338"]
[BlackElo "2613"]
[TimeControl "180+1"]
[EndTime "10:07:24 PST"]
[Termination "KetiGrant won by resignation"]

1. e4 {[%clk 0:02:58.8]} 1... c5 {[%clk 0:02:59]} 2. Nf3 {[%clk 0:02:58.3]} 2...
Nf6 {[%clk 0:02:59]} 3. Nc3 {[%clk 0:02:56.9]} 3... d5 {[%clk 0:02:58.8]} 4.
exd5 {[%clk 0:02:53.3]} 4... Nxd5 {[%clk 0:02:58.8]} 5. Bb5+ {[%clk 0:02:53.8]}
5... Bd7 {[%clk 0:02:58.5]} 6. Qe2 {[%clk 0:02:52.9]} 6... Nb4 {[%clk
0:02:52.6]} 7. d3 {[%clk 0:02:48.2]} 7... Bxb5 {[%clk 0:02:17.9]} 8. Nxb5 {[%clk
0:02:48]} 8... Qd7 {[%clk 0:02:04.5]} 9. Nc3 {[%clk 0:02:46.4]} 9... N8c6 {[%clk
0:02:04.3]} 10. a3 {[%clk 0:02:45]} 10... Nd5 {[%clk 0:02:04.3]} 11. Nxd5 {[%clk
0:02:43.1]} 11... Qxd5 {[%clk 0:02:04.7]} 12. O-O {[%clk 0:02:43.6]} 12... e6
{[%clk 0:02:04.6]} 13. c3 {[%clk 0:02:39.2]} 13... Be7 {[%clk 0:02:03.1]} 14.
Be3 {[%clk 0:02:39]} 14... O-O {[%clk 0:01:56.4]} 15. Rfd1 {[%clk 0:02:39.4]}
15... b5 {[%clk 0:01:30.2]} 16. b4 {[%clk 0:02:38.3]} 16... cxb4 {[%clk
0:01:05.9]} 17. axb4 {[%clk 0:02:39.2]} 17... a5 {[%clk 0:01:06.4]} 18. c4
{[%clk 0:02:30.8]} 18... Qh5 {[%clk 0:01:06]} 19. bxa5 {[%clk 0:02:24.8]} 19...
Rxa5 {[%clk 0:00:58.9]} 20. Rxa5 {[%clk 0:02:18.8]} 20... Nxa5 {[%clk
0:00:59.5]} 21. h3 {[%clk 0:02:15.7]} 21... bxc4 {[%clk 0:00:56.5]} 22. dxc4
{[%clk 0:02:15.6]} 22... h6 {[%clk 0:00:54.1]} 23. Rd7 {[%clk 0:02:14.2]} 23...
Bc5 {[%clk 0:00:50]} 24. Bxc5 {[%clk 0:02:04]} 24... Qxc5 {[%clk 0:00:49.9]} 25.
Ne5 {[%clk 0:02:04.5]} 25... Nc6 {[%clk 0:00:42.1]} 26. Nxc6 {[%clk 0:01:32.9]}
26... Qxc6 {[%clk 0:00:42.3]} 27. Qd3 {[%clk 0:01:32.6]} 27... g6 {[%clk
0:00:34.2]} 28. Qd4 {[%clk 0:01:29.7]} 28... Rc8 {[%clk 0:00:28.5]} 29. Rd8+
{[%clk 0:01:28.4]} 29... Rxd8 {[%clk 0:00:28.8]} 30. Qxd8+ {[%clk 0:01:29.1]}
30... Kg7 {[%clk 0:00:29.4]} 31. Qd4+ {[%clk 0:01:28.5]} 31... f6 {[%clk
0:00:25.9]} 32. f4 {[%clk 0:01:18.8]} 32... Kf7 {[%clk 0:00:24]} 33. Kf2 {[%clk
0:01:18.1]} 33... e5 {[%clk 0:00:22.1]} 34. fxe5 {[%clk 0:01:10.3]} 34... fxe5
{[%clk 0:00:22.6]} 35. Qd5+ {[%clk 0:00:41]} 35... Qxd5 {[%clk 0:00:22.6]} 36.
cxd5 {[%clk 0:00:41.9]} 36... Ke7 {[%clk 0:00:18.8]} 37. Ke3 {[%clk 0:00:41.7]}
37... Kd7 {[%clk 0:00:15.2]} 38. Ke4 {[%clk 0:00:35.9]} 38... Kd6 {[%clk
0:00:08.4]} 39. g3 {[%clk 0:00:35.9]} 39... h5 {[%clk 0:00:03.3]} 40. h4 {[%clk
0:00:35.7]} 40... Kd7 {[%clk 0:00:03.6]} 41. Kxe5 {[%clk 0:00:35.7]} 41... Ke7
{[%clk 0:00:04.5]} 42. d6+ {[%clk 0:00:29.7]} 42... Kd7 {[%clk 0:00:04.8]} 43.
Kd5 {[%clk 0:00:29.9]} 43... Kd8 {[%clk 0:00:04.5]} 44. Ke6 {[%clk 0:00:29.8]}
44... Ke8 {[%clk 0:00:05]} 45. Kf6 {[%clk 0:00:26.9]} 45... Kd7 {[%clk
0:00:04.8]} 46. Kxg6 {[%clk 0:00:26.9]} 46... Kxd6 {[%clk 0:00:05.7]} 47. Kxh5
{[%clk 0:00:27]} 1-0

[Event "*** Titled Tuesday Blitz"]
[Site "Chess.com"]
[Date "2021.03.02"]
[Round "1"]
[White "Taktikmonster"]
[Black "TorFredrikKaasen"]
[Result "0-1"]
[WhiteElo "2391"]
[BlackElo "2724"]
[TimeControl "180+1"]
[EndTime "10:07:25 PST"]
[Termination "TorFredrikKaasen won by resignation"]

1. e4 {[%clk 0:03:00.9]} 1... c5 {[%clk 0:02:57.3]} 2. Nf3 {[%clk 0:02:08.1]}
2... Nc6 {[%clk 0:02:56]} 3. d4 {[%clk 0:02:07.6]} 3... cxd4 {[%clk 0:02:56.2]}
4. Nxd4 {[%clk 0:02:08.5]} 4... Nf6 {[%clk 0:02:56.8]} 5. Nc3 {[%clk 0:02:07.9]}
5... d6 {[%clk 0:02:57.5]} 6. f3 {[%clk 0:02:07]} 6... e5 {[%clk 0:02:54.5]} 7.
Nb3 {[%clk 0:02:06.6]} 7... Be7 {[%clk 0:02:55.1]} 8. Be3 {[%clk 0:02:06.6]}
8... O-O {[%clk 0:02:54.9]} 9. Qd2 {[%clk 0:02:05.5]} 9... a5 {[%clk 0:02:46.4]}
10. Bb5 {[%clk 0:01:54.8]} 10... Na7 {[%clk 0:02:38]} 11. Bd3 {[%clk 0:01:53.2]}
11... Be6 {[%clk 0:02:29.1]} 12. Rd1 {[%clk 0:01:49.8]} 12... Qd7 {[%clk
0:02:17.3]} 13. a4 {[%clk 0:01:39.2]} 13... Nc6 {[%clk 0:02:03.1]} 14. O-O
{[%clk 0:01:34.5]} 14... Nb4 {[%clk 0:01:56.7]} 15. Bb5 {[%clk 0:01:27.6]} 15...
Qc7 {[%clk 0:01:56.7]} 16. Qf2 {[%clk 0:01:22.9]} 16... d5 {[%clk 0:01:52.7]}
17. exd5 {[%clk 0:01:20.2]} 17... Nfxd5 {[%clk 0:01:50.4]} 18. Nxd5 {[%clk
0:01:19.2]} 18... Nxd5 {[%clk 0:01:42.6]} 19. Kh1 {[%clk 0:01:06.1]} 19... Nxe3
{[%clk 0:01:39.2]} 20. Qxe3 {[%clk 0:01:07]} 20... Qxc2 {[%clk 0:01:34.1]} 21.
Nd2 {[%clk 0:00:43.9]} 21... Qxb2 {[%clk 0:01:29.3]} 22. Qe4 {[%clk 0:00:42.2]}
22... Rfd8 {[%clk 0:01:06.1]} 23. Qxb7 {[%clk 0:00:40.9]} 23... Bb4 {[%clk
0:00:52.4]} 24. Ne4 {[%clk 0:00:38.1]} 24... Qb3 {[%clk 0:00:44.3]} 25. Rxd8+
{[%clk 0:00:24.6]} 25... Rxd8 {[%clk 0:00:45.2]} 26. Qc7 {[%clk 0:00:24.1]}
26... Qd5 {[%clk 0:00:32.4]} 27. Ng5 {[%clk 0:00:24]} 27... Rc8 {[%clk
0:00:29.1]} 28. Qb6 {[%clk 0:00:15.6]} 28... Bf5 {[%clk 0:00:27.7]} 29. Qa7
{[%clk 0:00:08.7]} 29... h6 {[%clk 0:00:20.8]} 30. Ne4 {[%clk 0:00:08.4]} 30...
Ra8 {[%clk 0:00:18.2]} 31. Qc7 {[%clk 0:00:07.4]} 31... Rc8 {[%clk 0:00:17.2]}
32. Qa7 {[%clk 0:00:07.2]} 32... Bg6 {[%clk 0:00:16.3]} 33. Ng3 {[%clk 0:00:04]}
33... Qd4 {[%clk 0:00:15.4]} 34. Qb7 {[%clk 0:00:02.5]} 34... Rf8 {[%clk
0:00:15]} 35. h4 {[%clk 0:00:02.4]} 35... Qxh4+ {[%clk 0:00:14.3]} 36. Kg1
{[%clk 0:00:02.9]} 36... Bc5+ {[%clk 0:00:13.5]} 37. Rf2 {[%clk 0:00:02.5]}
37... Qxg3 {[%clk 0:00:14.1]} 0-1

[Event "*** Titled Tuesday Blitz"]
[Site "Chess.com"]
[Date "2021.03.02"]
[Round "1"]
[White "FredyMatsuura"]
[Black "rquery98"]
[Result "0-1"]
[WhiteElo "2321"]
[BlackElo "2625"]
[TimeControl "180+1"]
[EndTime "10:07:25 PST"]
[Termination "rquery98 won by resignation"]

1. d4 {[%clk 0:03:00.7]} 1... Nf6 {[%clk 0:03:00.1]} 2. c4 {[%clk 0:02:59.3]}
2... g6 {[%clk 0:03:00.6]} 3. Nc3 {[%clk 0:02:58.2]} 3... d5 {[%clk 0:03:01.2]}
4. Nf3 {[%clk 0:02:55.7]} 4... Bg7 {[%clk 0:03:00.1]} 5. e3 {[%clk 0:02:56.2]}
5... O-O {[%clk 0:02:50.8]} 6. Qb3 {[%clk 0:02:55.8]} 6... c6 {[%clk 0:02:48.1]}
7. Bd2 {[%clk 0:02:53.9]} 7... e6 {[%clk 0:02:45.2]} 8. Be2 {[%clk 0:02:42.5]}
8... b6 {[%clk 0:02:44.4]} 9. O-O {[%clk 0:02:41.6]} 9... Bb7 {[%clk 0:02:43.6]}
10. a4 {[%clk 0:02:38.9]} 10... a5 {[%clk 0:02:40.6]} 11. cxd5 {[%clk 0:02:34]}
11... exd5 {[%clk 0:02:37.9]} 12. Ne5 {[%clk 0:02:28.3]} 12... Nbd7 {[%clk
0:02:33.2]} 13. f4 {[%clk 0:02:16.5]} 13... c5 {[%clk 0:02:26.4]} 14. Bf3 {[%clk
0:02:06.5]} 14... Ne4 {[%clk 0:01:32.6]} 15. Nxe4 {[%clk 0:01:56.7]} 15... dxe4
{[%clk 0:01:31.7]} 16. Bg4 {[%clk 0:01:30.2]} 16... Nxe5 {[%clk 0:01:31.7]} 17.
fxe5 {[%clk 0:01:29.9]} 17... cxd4 {[%clk 0:01:29.4]} 18. e6 {[%clk 0:01:22.9]}
18... Bd5 {[%clk 0:01:22.8]} 19. exf7+ {[%clk 0:01:21.6]} 19... Rxf7 {[%clk
0:01:18.4]} 20. Qb5 {[%clk 0:01:19.5]} 20... d3 {[%clk 0:01:13.8]} 21. Rxf7
{[%clk 0:01:11.5]} 21... Bxf7 {[%clk 0:01:14.7]} 22. Rc1 {[%clk 0:01:10.8]}
22... Bf8 {[%clk 0:01:02]} 23. Qe5 {[%clk 0:01:01]} 23... Qd5 {[%clk 0:00:56.3]}
24. Qf6 {[%clk 0:00:55.2]} 24... Bb4 {[%clk 0:00:47.2]} 25. Bc3 {[%clk
0:00:34.6]} 25... Bxc3 {[%clk 0:00:42.6]} 26. Qxc3 {[%clk 0:00:34.5]} 26... Qg5
{[%clk 0:00:33.5]} 27. h3 {[%clk 0:00:20.1]} 27... Qxe3+ {[%clk 0:00:33.5]} 28.
Kh1 {[%clk 0:00:20.6]} 28... Rd8 {[%clk 0:00:26.5]} 29. Re1 {[%clk 0:00:18.9]}
29... Qd4 {[%clk 0:00:22.5]} 30. Qc7 {[%clk 0:00:17.2]} 30... Re8 {[%clk
0:00:17.8]} 31. Rf1 {[%clk 0:00:15.5]} 31... Qd5 {[%clk 0:00:12.6]} 32. Bd7
{[%clk 0:00:15.2]} 32... Rf8 {[%clk 0:00:12.3]} 33. Bc6 {[%clk 0:00:13.1]} 33...
Qe6 {[%clk 0:00:12.2]} 34. Bd7 {[%clk 0:00:08.1]} 34... Qe7 {[%clk 0:00:10.8]}
35. Qc6 {[%clk 0:00:07.8]} 35... e3 {[%clk 0:00:10]} 36. Bg4 {[%clk 0:00:05.8]}
36... e2 {[%clk 0:00:09]} 0-1

[Event "*** Titled Tuesday Blitz"]
[Site "Chess.com"]
[Date "2021.03.02"]
[Round "1"]
[White "Msb2"]
[Black "shaheus"]
[Result "1-0"]
[WhiteElo "2887"]
[BlackElo "2443"]
[TimeControl "180+1"]
[EndTime "10:07:26 PST"]
[Termination "Msb2 won on time"]

1. d4 {[%clk 0:03:00.9]} 1... Nf6 {[%clk 0:02:59.1]} 2. Nf3 {[%clk 0:03:00.6]}
2... g6 {[%clk 0:02:58.8]} 3. Nc3 {[%clk 0:03:00.4]} 3... Bg7 {[%clk 0:02:59.5]}
4. e4 {[%clk 0:03:00.7]} 4... d6 {[%clk 0:03:00.2]} 5. Be3 {[%clk 0:02:59.4]}
5... O-O {[%clk 0:03:00.5]} 6. Qd2 {[%clk 0:02:59.1]} 6... c6 {[%clk 0:03:00.2]}
7. Bh6 {[%clk 0:02:58.8]} 7... b5 {[%clk 0:03:00.3]} 8. a3 {[%clk 0:02:56.8]}
8... Bb7 {[%clk 0:02:54.3]} 9. h4 {[%clk 0:02:54.9]} 9... c5 {[%clk 0:02:48.4]}
10. h5 {[%clk 0:02:50.5]} 10... b4 {[%clk 0:02:44.3]} 11. axb4 {[%clk
0:02:34.3]} 11... cxb4 {[%clk 0:02:43.1]} 12. Ne2 {[%clk 0:02:22.3]} 12... Nxe4
{[%clk 0:02:40.4]} 13. Qe3 {[%clk 0:02:21.3]} 13... Nd7 {[%clk 0:02:13.7]} 14.
Bxg7 {[%clk 0:02:19.3]} 14... Kxg7 {[%clk 0:02:13.4]} 15. hxg6 {[%clk
0:02:19.8]} 15... Ndf6 {[%clk 0:02:00.8]} 16. Qh6+ {[%clk 0:02:15.2]} 16... Kg8
{[%clk 0:01:59.8]} 17. gxh7+ {[%clk 0:01:51.9]} 17... Kh8 {[%clk 0:01:58.9]} 18.
Qh4 {[%clk 0:01:29.4]} 18... Qc7 {[%clk 0:01:46.2]} 19. Rc1 {[%clk 0:01:28.4]}
19... a5 {[%clk 0:01:30]} 20. Nf4 {[%clk 0:00:58.5]} 20... a4 {[%clk 0:01:21.5]}
21. Bd3 {[%clk 0:00:50.7]} 21... a3 {[%clk 0:01:17.7]} 22. O-O {[%clk
0:00:50.9]} 22... axb2 {[%clk 0:01:10.4]} 23. Rb1 {[%clk 0:00:51]} 23... Nc3
{[%clk 0:01:05]} 24. Rxb2 {[%clk 0:00:48]} 24... Bxf3 {[%clk 0:01:04.3]} 25.
gxf3 {[%clk 0:00:48.9]} 25... Ncd5 {[%clk 0:00:40.6]} 26. Re1 {[%clk 0:00:45]}
26... Nxf4 {[%clk 0:00:37.3]} 27. Qxf4 {[%clk 0:00:45.9]} 27... Ra5 {[%clk
0:00:35]} 28. Rxb4 {[%clk 0:00:42.9]} 28... Qc3 {[%clk 0:00:31.8]} 29. Rxe7
{[%clk 0:00:33.3]} 29... Nxh7 {[%clk 0:00:13.7]} 30. Bxh7 {[%clk 0:00:20.3]}
30... Kxh7 {[%clk 0:00:12.4]} 31. Rxf7+ {[%clk 0:00:18.5]} 31... Rxf7 {[%clk
0:00:10.8]} 32. Qxf7+ {[%clk 0:00:19.4]} 32... Kh6 {[%clk 0:00:10.7]} 33. Qf6+
{[%clk 0:00:19.2]} 33... Kh5 {[%clk 0:00:08.7]} 34. Rb1 {[%clk 0:00:17.5]} 34...
Rg5+ {[%clk 0:00:07.4]} 35. Kh1 {[%clk 0:00:18]} 35... Qd2 {[%clk 0:00:02.3]}
36. Rg1 {[%clk 0:00:13.2]} 36... Rxg1+ {[%clk 0:00:01.4]} 37. Kxg1 {[%clk
0:00:14.1]} 37... Qxc2 {[%clk 0:00:01.3]} 38. Qxd6 {[%clk 0:00:12.4]} 1-0